fUSD/lending_fUSD_20250119
["ID","MTS","AMOUNT","RATE_DAILY","PERIOD"]
[349607013,1737325837400,-500.0,0.00020617,2]
[349607014,1737325837410,-508.62510652,0.00020617,2]
[349607015,1737325837420,-500.0,0.00020617,2]
[349607016,1737325837430,-508.79933858,0.00020617,2]
[349607017,1737325837439,-511.49065013,0.00020617,2]
[349607018,1737325837449,-500.0,0.00020617,2]
[349607019,1737325837458,-500.0,0.00020617,2]
[349607020,1737325837467,-500.0,0.00020617,2]
[349607021,1737325837477,-500.0,0.00020617,2]
[349607022,1737325837486,-511.57550406,0.00020617,2]
[349607023,1737325837495,-500.0,0.00020617,2]
[349607024,1737325837505,-500.0,0.00020617,2]
[349607025,1737325837514,-500.0,0.00020617,2]
[349607026,1737325837523,-500.0,0.00020617,2]
[349607027,1737325837532,-500.0,0.00020617,2]
[349607028,1737325837541,-500.0,0.00020617,2]
[349607029,1737325837551,-500.0,0.00020617,2]
[349607030,1737325837560,-675.64,0.00020617,2]
[349607031,1737325837570,-500.0,0.00020617,2]
[349607032,1737325837579,-500.0,0.00020617,2]
[349607033,1737325837589,-500.0,0.00020617,2]
[349607034,1737325837598,-500.0,0.00020617,2]
[349607035,1737325837608,-500.0,0.00020617,2]
[349607036,1737325837617,-500.0,0.00020617,2]
[349607037,1737325837626,-500.0,0.00020617,2]
[349607038,1737325837635,-500.0,0.00020617,2]
[349607039,1737325837645,-500.0,0.00020617,2]
[349607040,1737325837654,-500.0,0.00020617,2]
[349607041,1737325837664,-500.0,0.00020617,2]
[349607042,1737325837673,-500.0,0.00020617,2]
[349607043,1737325837683,-500.0,0.00020617,2]
[349607044,1737325837692,-500.0,0.00020617,2]
[349607045,1737325837702,-500.0,0.00020617,2]
[349607046,1737325837711,-500.0,0.00020617,2]
[349607047,1737325837720,-500.0,0.00020617,2]
[349607048,1737325837730,-500.0,0.00020617,2]
[349607049,1737325837740,-209.16173516,0.00020617,2]
[349607050,1737325837749,-500.0,0.00020617,2]
[349607051,1737325837759,-500.0,0.00020617,2]
[349607052,1737325837769,-1000.0,0.00020617,2]
[349607053,1737325837778,-500.0,0.00020617,2]
[349607054,1737325837788,-516.7672824,0.00020617,2]
[349607055,1737325837797,-500.0,0.00020617,2]
[349607056,1737325837807,-500.0,0.00020617,2]
[349607057,1737325837816,-500.0,0.00020617,2]
[349607058,1737325837825,-500.0,0.00020617,2]
[349607059,1737325837835,-500.0,0.00020617,2]
[349607060,1737325837844,-251.18783995,0.00020617,2]
[349607061,1737325837853,-500.0,0.00020617,2]
[349607062,1737325837863,-500.0,0.00020617,2]
[349607063,1737325837872,-500.0,0.00020617,2]
[349607064,1737325837881,-500.0,0.00020617,2]
[349607065,1737325837890,-532.62,0.00020617,2]
[349607066,1737325837900,-500.0,0.00020617,2]
[349607067,1737325837909,-500.0,0.00020617,2]
[349607068,1737325837919,-500.0,0.00020617,2]
[349607069,1737325837929,-500.0,0.00020617,2]
[349607072,1737325837938,-500.0,0.00020617,2]
[349607074,1737325837947,-500.0,0.00020617,2]
[349607075,1737325837956,-500.0,0.00020617,2]
[349607077,1737325837965,-500.0,0.00020617,2]
[349607079,1737325837975,-500.0,0.00020617,2]
[349607080,1737325837984,-500.0,0.00020617,2]
[349607081,1737325837994,-500.0,0.00020617,2]
[349607083,1737325838003,-511.51401645,0.00020617,2]
[349607085,1737325838012,-500.0,0.00020617,2]
[349607086,1737325838024,-500.0,0.00020617,2]
[349607087,1737325838033,-500.0,0.00020617,2]
[349607088,1737325838042,-500.0,0.00020617,2]
[349607089,1737325838053,-500.0,0.00020617,2]
[349607090,1737325838062,-500.0,0.00020617,2]
[349607091,1737325838071,-500.0,0.00020617,2]
[349607092,1737325838080,-500.0,0.00020617,2]
[349607093,1737325838089,-500.0,0.00020617,2]
[349607094,1737325838098,-500.0,0.00020617,2]
[349607095,1737325838108,-500.0,0.00020617,2]
[349607096,1737325838117,-500.0,0.00020617,2]
[349607097,1737325838126,-500.0,0.00020617,2]
[349607098,1737325838136,-505.06424015,0.00020617,2]
[349607099,1737325838146,-500.0,0.00020617,2]
[349607100,1737325838155,-646.54133657,0.00020617,2]
[349607101,1737325838165,-500.0,0.00020617,2]
[349607102,1737325838173,-500.0,0.00020617,2]
[349607103,1737325838182,-500.0,0.00020617,2]
[349607104,1737325838191,-500.0,0.00020617,2]
[349607105,1737325838201,-500.0,0.00020617,2]
[349607106,1737325838210,-500.0,0.00020617,2]
[349607107,1737325838219,-500.0,0.00020617,2]
[349607108,1737325838227,-500.0,0.00020617,2]
[349607109,1737325838236,-500.0,0.00020617,2]
[349607110,1737325838245,-501.33061193,0.00020617,2]
[349607111,1737325838255,-300.0,0.00020617,2]
[349607112,1737325838263,-500.0,0.00020617,2]
[349607113,1737325838272,-500.0,0.00020617,2]
[349607114,1737325838281,-500.0,0.00020617,2]
[349607115,1737325838291,-500.0,0.00020617,2]
[349607116,1737325838299,-500.0,0.00020617,2]
[349607117,1737325838308,-500.0,0.00020617,2]
[349607118,1737325838317,-503.29227347,0.00020617,2]
[349607119,1737325838326,-500.0,0.00020617,2]
[349607120,1737325838335,-500.0,0.00020617,2]
[349607121,1737325838344,-508.22767713,0.00020617,2]
[349607122,1737325838355,-500.0,0.00020617,2]
[349607123,1737325838364,-500.0,0.00020617,2]
[349607124,1737325838373,-500.0,0.00020617,2]
[349607125,1737325838383,-500.0,0.00020617,2]
[349607126,1737325838392,-500.0,0.00020617,2]
[349607127,1737325838401,-500.0,0.00020617,2]
[349607128,1737325838410,-500.0,0.00020617,2]
[349607129,1737325838419,-500.0,0.00020617,2]
[349607130,1737325838428,-500.0,0.00020617,2]
[349607131,1737325838437,-500.0,0.00020617,2]
[349607132,1737325838446,-500.0,0.00020617,2]
[349607133,1737325838456,-500.0,0.00020617,2]
[349607134,1737325838465,-500.0,0.00020617,2]
[349607135,1737325838474,-516.87699256,0.00020617,2]
[349607137,1737325838483,-500.0,0.00020617,2]
[349607139,1737325838492,-500.0,0.00020617,2]
[349607140,1737325838501,-500.0,0.00020617,2]
[349607141,1737325838510,-500.0,0.00020617,2]
[349607142,1737325838519,-500.0,0.00020617,2]
[349607143,1737325838528,-500.0,0.00020617,2]
[349607144,1737325838538,-500.0,0.00020617,2]
[349607145,1737325838547,-500.0,0.00020617,2]
[349607146,1737325838556,-191.80277943,0.00020617,2]
[349607147,1737325838565,-503.90164684,0.00020617,2]
[349607148,1737325838574,-286.28307631,0.00020617,2]
[349607149,1737325838584,-500.0,0.00020617,2]
[349607150,1737325838593,-191.61399526,0.00020617,2]
[349607151,1737325838602,-500.0,0.00020617,2]
[349607153,1737325838611,-500.0,0.00020617,2]
[349607155,1737325838621,-300.0,0.00020617,2]
[349607157,1737325838630,-500.0,0.00020617,2]
[349607159,1737325838639,-500.0,0.00020617,2]
[349607163,1737325838648,-500.0,0.00020617,2]
[349607165,1737325838657,-2189.34776839,0.00020617,2]
[349607167,1737325838666,-500.0,0.00020617,2]
[349607169,1737325838676,-500.0,0.00020617,2]
[349607171,1737325838685,-500.0,0.00020617,2]
[349607173,1737325838694,-500.0,0.00020617,2]
[349607175,1737325838703,-500.0,0.00020617,2]
[349607177,1737325838712,-500.0,0.00020617,2]
[349607179,1737325838722,-500.0,0.00020617,2]
[349607181,1737325838731,-6118.36355693,0.00020618,2]
[349607184,1737325838751,-94450.08614307,0.00020618,2]
[349607186,1737325838761,-55555.0,0.00020618,2]
[349607188,1737325838770,-2583.49356378,0.00020671,2]
[349607190,1737325838779,-500.0,0.00020673,2]
[349607192,1737325838788,-161.9896405,0.00020673,2]
[349607194,1737325838797,-472.15649607,0.00020673,2]
[349607196,1737325838807,-306.31291079,0.00020673,2]
[349607198,1737325838816,-303.09285246,0.00020673,2]
[349607200,1737325838825,-500.64404719,0.00020673,2]
[349607202,1737325838834,-500.0,0.00020673,2]
[349607204,1737325838843,-276.46134591,0.00020674,2]
[349607206,1737325838854,-35.1213225,0.00020674,2]
[349607208,1737325838863,-20140.64030107,0.000207,2]
[349607210,1737325838873,-500.0,0.00020715,2]
[349607212,1737325838882,-244.93884744,0.00020715,2]
[349607214,1737325838891,-648.1179863,0.00020716,2]
[349607215,1737325838900,-500.0,0.00020716,2]
[349607216,1737325838909,-500.0,0.00020716,2]
[349607217,1737325838919,-500.0,0.00020716,2]
[349607218,1737325838928,-500.0,0.00020716,2]
[349607219,1737325838936,-504.39,0.00020716,2]
[349607220,1737325838946,-500.0,0.00020716,2]
[349607221,1737325838955,-500.0,0.00020716,2]
[349607222,1737325838964,-632.36,0.00020716,2]
[349607223,1737325839102,-500.0,0.00020716,2]
[349607224,1737325839111,-500.0,0.00020716,2]
[349607225,1737325839121,-454.87432721,0.00020716,2]
[349607226,1737325839136,-45.12567279,0.00020716,2]
[349607227,1737325839145,-262.60298585,0.00020716,2]
[349607228,1737325839157,-237.39701415,0.00020716,2]
[349607229,1737325839166,-500.0,0.00020716,2]
[349607230,1737325839177,-500.0,0.00020716,2]
[349607231,1737325839186,-500.0,0.00020716,2]
[349607232,1737325839195,-500.0,0.00020716,2]
[349607233,1737325839206,-500.0,0.00020716,2]
[349607234,1737325839215,-389.40298585,0.00020716,2]
[349607235,1737325839226,-110.59701415,0.00020716,2]
[349607236,1737325839235,-500.0,0.00020716,2]
[349607237,1737325839244,-500.0,0.00020716,2]
[349607238,1737325839253,-500.0,0.00020716,2]
[349607239,1737325839262,-500.0,0.00020716,2]
[349607240,1737325839273,-500.0,0.00020716,2]
[349607241,1737325839282,-500.0,0.00020716,2]
[349607242,1737325839292,-500.0,0.00020716,2]
[349607243,1737325839301,-500.0,0.00020716,2]
[349607244,1737325839310,-500.0,0.00020716,2]
[349607245,1737325839319,-500.0,0.00020716,2]
[349607246,1737325839329,-500.0,0.00020716,2]
[349607247,1737325839338,-500.0,0.00020716,2]
[349607248,1737325839347,-500.0,0.00020716,2]
[349607249,1737325839357,-500.0,0.00020716,2]
[349607250,1737325839366,-500.0,0.00020716,2]
[349607251,1737325839375,-500.0,0.00020716,2]
[349607252,1737325839385,-500.0,0.00020716,2]
[349607253,1737325839394,-500.0,0.00020716,2]
[349607254,1737325839404,-500.0,0.00020716,2]
[349607255,1737325839413,-500.0,0.00020716,2]
[349607256,1737325839423,-591.92,0.00020716,2]
[349607257,1737325839432,-500.0,0.00020716,2]
[349607258,1737325839442,-500.0,0.00020716,2]
[349607259,1737325839451,-500.0,0.00020716,2]
[349607260,1737325839461,-500.0,0.00020716,2]
[349607261,1737325839470,-518.09992258,0.00020718,2]
[349607262,1737325839479,-500.0,0.00020718,2]
[349607263,1737325839489,-500.0,0.00020718,2]
[349607264,1737325839498,-500.0,0.00020718,2]
[349607265,1737325839508,-500.0,0.00020718,2]
[349607266,1737325839518,-500.0,0.00020718,2]
[349607267,1737325839528,-500.0,0.00020718,2]
[349607268,1737325839537,-500.0,0.00020718,2]
[349607269,1737325839546,-500.0,0.00020718,2]
[349607270,1737325839556,-641.76565917,0.00020718,2]
[349607271,1737325839565,-500.0,0.00020718,2]
[349607272,1737325839575,-500.0,0.00020718,2]
[349607273,1737325839584,-500.0,0.00020718,2]
[349607274,1737325839594,-500.0,0.00020718,2]
[349607275,1737325839603,-500.0,0.00020718,2]
[349607276,1737325839613,-500.0,0.00020718,2]
[349607277,1737325839622,-500.0,0.00020718,2]
[349607278,1737325839633,-500.0,0.00020718,2]
[349607279,1737325839643,-500.0,0.00020718,2]
[349607280,1737325839652,-500.0,0.00020718,2]
[349607281,1737325839663,-500.0,0.00020718,2]
[349607282,1737325839672,-500.0,0.00020718,2]
[349607283,1737325839681,-98.91310988,0.00020718,2]
[349607284,1737325839698,-401.08689012,0.00020718,2]
[349607285,1737325839707,-500.0,0.00020718,2]
[349607286,1737325839717,-500.0,0.00020718,2]
[349607287,1737325839726,-500.0,0.00020718,2]
[349607288,1737325839736,-500.0,0.00020718,2]
[349607289,1737325839746,-329.4708566,0.00020718,2]
[349607290,1737325839755,-473.44225328,0.00020718,2]
[349607291,1737325839768,-26.55774672,0.00020718,2]
[349607292,1737325839778,-500.0,0.00020718,2]
[349607293,1737325839787,-501.9779374,0.00020718,2]
[349607294,1737325839796,-500.0,0.00020718,2]
[349607295,1737325839806,-302.4569468,0.00020718,2]
[349607296,1737325839819,-197.5430532,0.00020718,2]
[349607297,1737325839828,-500.0,0.00020718,2]
[349607298,1737325839837,-500.0,0.00020718,2]
[349607299,1737325839847,-500.0,0.00020718,2]
[349607300,1737325839856,-357.7569468,0.00020718,2]
[349607301,1737325839872,-142.2430532,0.00020718,2]
[349607302,1737325839882,-500.0,0.00020718,2]
[349607303,1737325839891,-500.0,0.00020718,2]
[349607304,1737325839901,-150.0,0.00020718,2]
[349607305,1737325839911,-500.0,0.00020718,2]
[349607307,1737325839920,-677.87964315,0.00020718,2]
[349607308,1737325839930,-500.0,0.00020718,2]
[349607309,1737325839939,-640.6929779,0.00020718,2]
[349607310,1737325839949,-500.0,0.00020718,2]
[349607311,1737325839959,-500.0,0.00020718,2]
[349607312,1737325839968,-500.0,0.00020718,2]
[349607313,1737325839978,-500.0,0.00020718,2]
[349607314,1737325839988,-500.0,0.00020718,2]
[349607315,1737325839997,-500.0,0.00020718,2]
[349607316,1737325840007,-500.0,0.00020718,2]
[349607317,1737325840016,-500.0,0.00020718,2]
[349607318,1737325840026,-500.0,0.00020718,2]
[349607319,1737325840035,-500.0,0.00020718,2]
[349607320,1737325840044,-500.0,0.00020718,2]
[349607321,1737325840054,-500.0,0.00020718,2]
[349607322,1737325840066,-5008.07049524,0.00020751,2]
[349607323,1737325840075,-342.38776801,0.00020759,2]
[349607324,1737325840084,-318.38189525,0.00020759,2]
[349607325,1737325840093,-500.0,0.00020759,2]
[349607327,1737325840103,-500.0,0.00020759,2]
[349607328,1737325840112,-500.0,0.00020759,2]
[349607330,1737325840122,-200.0,0.00020784,2]
[349607333,1737325840132,-1386.20685184,0.00020784,2]
[349607334,1737325840142,-311.58266841,0.00020785,2]
[349607336,1737325840154,-1016.89906538,0.00020789,2]
[349607337,1737325840164,-200.39040058,0.00020789,2]
[349607338,1737325840174,-300.0,0.000208,7]
[349607339,1737325840183,-5707.76518104,0.00020815,2]
[349607372,1737325840490,-500.0,0.00020572,2]
[349607374,1737325840500,-161.51562188,0.00020606,2]
[349607375,1737325840511,-228.96809478,0.00020606,2]
[349607376,1737325840520,-200.21586459,0.00020606,2]
[349607377,1737325840532,-202.00102038,0.00020606,2]
[349607378,1737325840542,-127.96282853,0.00020606,2]
[349607379,1737325840554,-206.62462526,0.00020606,2]
[349607380,1737325840564,-46682.73262819,0.00020815,2]
[349607381,1737325840573,-131404.46251102,0.00020818,2]
[349607382,1737325840585,-835.30277608,0.00020818,2]
[349607383,1737325840596,-309.00425832,0.00020818,2]
[349607384,1737325840739,-66954.74275287,0.00020818,2]
[349607385,1737325840748,-2583.49356378,0.00020824,2]
[349607386,1737325840758,-52390.49780923,0.00020828,2]
[349607387,1737325840767,-2950.89231385,0.00020829,2]
[349607388,1737325840777,-2950.89231385,0.00020829,2]
[349607389,1737325840787,-2950.89231385,0.00020843,2]
[349607390,1737325840796,-500.0,0.00020846,2]
[349607391,1737325840806,-500.0,0.00020846,2]
[349607392,1737325840815,-500.0,0.00020846,2]
[349607393,1737325840824,-500.0,0.00020846,2]
[349607394,1737325840833,-500.0,0.00020846,2]
[349607395,1737325840842,-500.0,0.00020846,2]
[349607396,1737325840851,-500.0,0.00020846,2]
[349607397,1737325840861,-500.0,0.00020846,2]
[349607398,1737325840870,-500.0,0.00020846,2]
[349607399,1737325840879,-500.0,0.00020846,2]
[349607400,1737325840888,-500.0,0.00020846,2]
[349607401,1737325840897,-500.0,0.00020846,2]
[349607402,1737325840906,-500.0,0.00020846,2]
[349607403,1737325840916,-500.0,0.00020846,2]
[349607404,1737325840927,-500.0,0.00020846,2]
[349607405,1737325840935,-511.26,0.00020846,2]
[349607406,1737325840945,-500.0,0.00020846,2]
[349607407,1737325840954,-500.0,0.00020846,2]
[349607408,1737325840963,-500.0,0.00020846,2]
[349607409,1737325840972,-500.0,0.00020846,2]
[349607410,1737325840981,-500.0,0.00020846,2]
[349607411,1737325840990,-500.0,0.00020846,2]
[349607412,1737325840999,-500.0,0.00020846,2]
[349607413,1737325841009,-500.0,0.00020846,2]
[349607414,1737325841018,-500.0,0.00020846,2]
[349607415,1737325841033,-500.0,0.00020846,2]
[349607416,1737325841043,-500.0,0.00020846,2]
[349607417,1737325841052,-500.0,0.00020846,2]
[349607418,1737325841061,-500.0,0.00020846,2]
[349607419,1737325841071,-599.83,0.00020846,2]
[349607420,1737325841080,-500.0,0.00020846,2]
[349607421,1737325841089,-1104.36,0.00020846,2]
[349607422,1737325841098,-270.18,0.00020846,2]
[349607423,1737325841108,-500.0,0.00020846,2]
[349607424,1737325841117,-500.0,0.00020846,2]
[349607425,1737325841126,-500.0,0.00020846,2]
[349607426,1737325841135,-500.0,0.00020846,2]
[349607427,1737325841144,-500.0,0.00020846,2]
[349607428,1737325841153,-554.13,0.00020846,2]
[349607429,1737325841163,-500.0,0.00020846,2]
[349607430,1737325841171,-500.0,0.00020846,2]
[349607431,1737325841181,-500.0,0.00020846,2]
[349607432,1737325841190,-500.0,0.00020846,2]
[349607433,1737325841201,-1665.29,0.00020846,2]
[349607434,1737325841210,-500.0,0.00020846,2]
[349607435,1737325841219,-500.0,0.00020846,2]
[349607436,1737325841228,-500.0,0.00020846,2]
[349607437,1737325841238,-500.0,0.00020846,2]
[349607438,1737325841247,-500.0,0.00020846,2]
[349607439,1737325841256,-500.0,0.00020846,2]
[349607440,1737325841265,-416.77124757,0.00020846,2]
[349607441,1737325841274,-500.0,0.00020846,2]
[349607442,1737325841283,-1045.1,0.00020846,2]
[349607443,1737325841292,-412.18553788,0.00020846,2]
[349607444,1737325841569,-372.25921821,0.00020572,2]
[349607445,1737325841585,-127.74078179,0.00020572,2]
[349607446,1737325841594,-87.81446212,0.00020846,2]
[349607447,1737325841603,-500.0,0.00020846,2]
[349607448,1737325841613,-500.0,0.00020846,2]
[349607449,1737325841622,-500.0,0.00020846,2]
[349607450,1737325841631,-500.0,0.00020846,2]
[349607451,1737325841640,-500.0,0.00020846,2]
[349607452,1737325841649,-500.0,0.00020846,2]
[349607453,1737325841659,-500.0,0.00020846,2]
[349607454,1737325841668,-500.0,0.00020846,2]
[349607455,1737325841678,-500.0,0.00020846,2]
[349607456,1737325841687,-500.0,0.00020846,2]
[349607457,1737325841697,-500.0,0.00020846,2]
[349607458,1737325841706,-500.0,0.00020846,2]
[349607459,1737325841715,-500.0,0.00020846,2]
[349607460,1737325841724,-500.0,0.00020846,2]
[349607461,1737325841734,-500.0,0.00020846,2]
[349607462,1737325841742,-500.0,0.00020846,2]
[349607463,1737325841751,-500.0,0.00020846,2]
[349607464,1737325841760,-500.0,0.00020846,2]
[349607465,1737325841770,-500.0,0.00020846,2]
[349607467,1737325841780,-618.29,0.00020846,2]
[349607469,1737325841789,-802.73,0.00020846,2]
[349607471,1737325841798,-500.0,0.00020846,2]
[349607473,1737325841807,-660.41,0.00020846,2]
[349607475,1737325841816,-500.0,0.00020846,2]
[349607477,1737325841826,-500.0,0.00020846,2]
[349607479,1737325841835,-500.0,0.00020846,2]
[349607481,1737325841843,-500.0,0.00020846,2]
[349607483,1737325841852,-500.0,0.00020846,2]
[349607485,1737325841861,-500.0,0.00020846,2]
[349607487,1737325841870,-729.34,0.00020846,2]
[349607488,1737325841879,-622.19,0.00020846,2]
[349607490,1737325841889,-500.0,0.00020846,2]
[349607492,1737325841897,-500.0,0.00020846,2]
[349607493,1737325841906,-500.0,0.00020846,2]
[349607494,1737325841915,-500.0,0.00020846,2]
[349607495,1737325841925,-500.0,0.00020846,2]
[349607496,1737325841935,-133.42348674,0.00020846,2]
[349607497,1737325841947,-366.57651326,0.00020846,2]
[349607498,1737325841958,-500.0,0.00020846,2]
[349607499,1737325841967,-432.44340891,0.00020846,2]
[349607500,1737325841978,-710.46659109,0.00020846,2]
[349607501,1737325841987,-500.0,0.00020846,2]
[349607502,1737325841996,-500.0,0.00020846,2]
[349607503,1737325842005,-500.0,0.00020846,2]
[349607504,1737325842014,-640.59358987,0.00020846,2]
[349607505,1737325842030,-500.0,0.00020846,2]
[349607506,1737325842039,-500.0,0.00020846,2]
[349607507,1737325842048,-969.45,0.00020846,2]
[349607508,1737325842058,-500.0,0.00020846,2]
[349607509,1737325842066,-500.0,0.00020846,2]
[349607510,1737325842075,-689.73,0.00020846,2]
[349607511,1737325842084,-500.0,0.00020846,2]
[349607512,1737325842093,-500.0,0.00020846,2]
[349607513,1737325842103,-500.0,0.00020846,2]
[349607514,1737325842112,-500.0,0.00020846,2]
[349607515,1737325842122,-500.0,0.00020846,2]
[349607516,1737325842133,-1661.7,0.00020846,2]
[349607517,1737325842142,-500.0,0.00020846,2]
[349607518,1737325842151,-500.0,0.00020846,2]
[349607519,1737325842161,-500.0,0.00020846,2]
[349607520,1737325842172,-500.0,0.00020846,2]
[349607521,1737325842181,-414.75981903,0.00020846,2]
[349607522,1737325842193,-85.24018097,0.00020846,2]
[349607523,1737325842202,-175.62,0.00020846,2]
[349607524,1737325842213,-500.0,0.00020846,2]
[349607525,1737325842222,-500.0,0.00020846,2]
[349607526,1737325842231,-500.0,0.00020846,2]
[349607527,1737325842241,-462.82412515,0.00020846,2]
[349607528,1737325842252,-37.17587485,0.00020846,2]
[349607529,1737325842261,-500.0,0.00020846,2]
[349607530,1737325842271,-500.0,0.00020846,2]
[349607531,1737325842280,-500.0,0.00020846,2]
[349607532,1737325842289,-338.97384515,0.00020846,2]
[349607533,1737325842300,-161.02615485,0.00020846,2]
[349607534,1737325842309,-500.0,0.00020846,2]
[349607535,1737325842318,-500.0,0.00020846,2]
[349607536,1737325842327,-500.0,0.00020846,2]
[349607537,1737325842336,-155.98931438,0.00020873,2]
[349607538,1737325842346,-150.98903446,0.00020873,2]
[349607539,1737325842354,-160.98971725,0.00020873,2]
[349607540,1737325842363,-500.0,0.00020873,2]
[349607541,1737325842372,-500.91261316,0.00020873,2]
[349607542,1737325842381,-500.0,0.00020873,2]
[349607543,1737325842391,-1667.36312819,0.00020877,2]
[349607544,1737325842514,-1283.52918566,0.00020877,2]
[349607545,1737325842523,-1016.89906538,0.00020877,2]
[349607546,1737325842532,-200.0,0.00020879,2]
[349607547,1737325842541,-196.502555,0.0002088,2]
[349607548,1737325842551,-500.0,0.0002088,2]
[349607549,1737325842560,-500.0,0.0002088,2]
[349607550,1737325842569,-500.0,0.0002088,2]
[349607551,1737325842579,-500.0,0.0002088,2]
[349607552,1737325842588,-500.0,0.0002088,2]
[349607553,1737325842597,-754.23,0.0002088,2]
[349607554,1737325842606,-500.0,0.0002088,2]
[349607555,1737325842615,-987.59,0.0002088,2]
[349607556,1737325842624,-1165.83,0.0002088,2]
[349607557,1737325842633,-500.0,0.0002088,2]
[349607558,1737325842643,-500.0,0.0002088,2]
[349607559,1737325842652,-983.06,0.0002088,2]
[349607560,1737325842662,-500.0,0.0002088,2]
[349607561,1737325842671,-270.14,0.0002088,2]
[349607562,1737325842680,-1021.55,0.0002088,2]
[349607563,1737325842690,-500.0,0.0002088,2]
[349607564,1737325842699,-500.0,0.0002088,2]
[349607565,1737325842708,-52390.49780923,0.00020882,2]
[349607566,1737325842718,-13762.6688295,0.00020883,2]
[349607567,1737325842730,-349.283,0.00020883,2]
[349607590,1737325843227,-1205.00113855,0.00020883,2]
[349607591,1737325843240,-37073.54484118,0.00020883,2]
[349607592,1737325843249,-1016.89906538,0.00020884,2]
[349607593,1737325843259,-166.66,0.00020885,2]
[349607594,1737325843269,-222.75,0.0002089,2]
[349607595,1737325843279,-500.0,0.0002089,2]
[349607596,1737325843289,-500.0,0.0002089,2]
[349607597,1737325843299,-706.75,0.0002089,2]
[349607598,1737325843309,-701.36,0.0002089,2]
[349607599,1737325843319,-500.0,0.0002089,2]
[349607600,1737325843328,-1726.5,0.0002089,2]
[349607601,1737325843338,-500.0,0.0002089,2]
[349607602,1737325843348,-500.0,0.0002089,2]
[349607603,1737325843357,-640.14,0.0002089,2]
[349607604,1737325843367,-500.0,0.0002089,2]
[349607605,1737325843377,-500.0,0.0002089,2]
[349607606,1737325843387,-500.0,0.0002089,2]
[349607607,1737325843398,-500.0,0.0002089,2]
[349607608,1737325843408,-500.0,0.0002089,2]
[349607609,1737325843418,-500.0,0.0002089,2]
[349607610,1737325843428,-551.72308043,0.0002089,2]
[349607611,1737325843438,-500.0,0.0002089,2]
[349607612,1737325843447,-500.0,0.0002089,2]
[349607613,1737325843457,-500.0,0.0002089,2]
[349607614,1737325843466,-500.0,0.0002089,2]
[349607615,1737325843475,-500.0,0.0002089,2]
[349607616,1737325843485,-500.0,0.0002089,2]
[349607617,1737325843494,-345.25480929,0.00020891,2]
[349607618,1737325843507,-204.28245583,0.00020891,2]
[349607620,1737325843516,-500.0,0.00020891,2]
[349607622,1737325843530,-500.0,0.00020891,2]
[349607624,1737325843540,-500.0,0.00020891,2]
[349607626,1737325843549,-500.0,0.00020891,2]
[349607628,1737325843559,-500.0,0.00020891,2]
[349607630,1737325843569,-500.0,0.00020891,2]
[349607632,1737325843578,-467.38564417,0.00020891,2]
[349607633,1737325843590,-32.61435583,0.00020891,2]
[349607634,1737325843599,-500.0,0.00020891,2]
[349607635,1737325843609,-142.84881495,0.00020891,2]